[Event "EIBCC 2024"]
[Site "Skopje"]
[Date "2024.12.09"]
[Round "3.1"]
[White "Sarana, Alexey"]
[Black "Zajic, Milan"]
[Result "1-0"]
[Annotator "TA"]
[ECO "E54"]
[WhiteElo "2674"]
[BlackElo "2392"]
[PlyCount "121"]
[EventDate "2024.12.07"]
[EventCountry "MKD"]
[SourceTitle "playchess.com"]
[Source "ChessBase"]
[SourceQuality "1"]
[TimeControl "180+2"]

{[%evp 31,121,5,20,26,33,16,20,22,24,-315,-303,-325,-309,-380,-375,-359,-361,-348,-223,-410,0,-470,-378,-429,-330,-330,-334,-324,-273,-280,-284,-291,-157,-172,-66,-213,-52,-63,-60,-64,-61,-78,-53,-53,-39,-54,-53,-54,-30,-45,-37,-31,0,-54,-25,-37,-12,-106,0,0,0,0,0,0,0,0,0,0,0,0,0,0,0,0,0,0,0,0,0,0,-3,-7,8,8,8,8,8,8,8,8,934,8]} 1. d4 {[%emt 0:00:01]} Nf6 {[%emt 0:00:01]} 2. c4 {[%emt 0:00:00]} e6 {[%emt 0:00:01]} 3. Nc3 {[%emt 0:00:01]} Bb4 {[%emt 0:00:01]} 4. Nf3 {[%emt 0:00:01]} O-O {[%emt 0:00:27]} 5. e3 {[%emt 0:00:02]} d5 {[%emt 0:00:07]} 6. Bd3 {[%emt 0:00:01]} dxc4 {[%emt 0:00:07]} 7. Bxc4 {[%emt 0:00:02]} c5 {[%emt 0:00:02]} 8. O-O {[%emt 0:00:02]} cxd4 {[%emt 0:00:11]} 9. exd4 {[%emt 0:00:01]} b6 {[%emt 0:00:07]} 10. Qe2 {[%emt 0:00:01]} Bb7 {[%emt 0:00:09]} 11. Rd1 {[%emt 0:00:02]} h6 {[%emt 0:00:08] 11...h6 is the modern continuation. E54: Nimzo-Indian: Rubinstein: Main Line: 7...dxc4 8 Bxc4.} 12. h3 $5 {[%emt 0:00:02][%mdl 4] Leaves trodden paths.} Nc6 $146 {[%emt 0:00:03]} ({Predecessor:} 12... Re8 13. Bf4 Nd5 14. Bd2 Nc6 15. Bd3 Nf6 16. a3 Bf8 17. Rac1 Rc8 18. Bb5 Bd6 19. Be3 {0-1 Sambuev,B (2433)-Rodrigue Lemieux,S (2451) CAN-ch Toronto 2023 (7)}) 13. d5 {[%emt 0:00:09]} exd5 {[%emt 0:00:02]} 14. Nxd5 {[%emt 0:00:01]} Nxd5 {[%emt 0:00:01]} 15. Bxd5 {[%emt 0:00:01]} Qf6 {[%emt 0:00:01]} 16. Be3 {[%emt 0:00:02]} Rfe8 {[%emt 0:00:04]} 17. Qb5 {[%emt 0:00:37]} Bf8 {[%emt 0:00:41]} 18. Rd2 {[%emt 0:00:01]} Rad8 {[%emt 0:00:25]} 19. Rad1 {[%emt 0:00:02]} Rd6 {[%emt 0:00:01] [#]} 20. Bxf7+ $2 {[%emt 0:01:38][%mdl 8192]} (20. Qa4 $1 $11) 20... Kxf7 $19 {[%emt 0:00:20]} 21. Rxd6 {[%emt 0:00:01]} Bxd6 {[%emt 0:00:02]} 22. Qh5+ {[%emt 0:00:01]} Kf8 {[%emt 0:00:11]} 23. Nh4 {[%emt 0:00:07]} Re6 {[%emt 0:00:06]} 24. Nf5 {[%emt 0:00:08]} Kg8 {[%emt 0:00:10]} 25. Qg4 $2 {[%emt 0:00:22]} (25. Nxd6 Rxd6 26. Rxd6 Qxd6 27. Qe2) 25... Kh7 $2 {[%emt 0:00:05]} (25... Ne5 $19 26. Qh5 Bf8) 26. Nh4 $2 {[%emt 0:00:15][%mdl 8192]} (26. Nxg7 $1 $11 Re7 27. Nh5) 26... Bc8 {[%emt 0:00:04]} 27. Qc4 {[%emt 0:00:01]} Bc5 {[%emt 0:00:09]} 28. Bxc5 {[%emt 0:00:06]} bxc5 {[%emt 0:00:01]} 29. Qc2+ {[%emt 0:00:06]} g6 {[%emt 0:00:01]} 30. Nf3 {[%emt 0:00:02]} Rd6 {[%emt 0:00:02]} 31. Re1 {[%emt 0:00:03]} Bf5 {[%emt 0:00:07]} (31... Rd5 $19 {Strongly threatening ...Be6.} 32. Qe4 Qf7) 32. Qxc5 $17 {[%emt 0:00:01]} Re6 {[%emt 0:00:01]} (32... a5 $19 {[%cal Of5d7]} 33. a3 a4) 33. Rd1 {[%emt 0:00:01]} (33. Rxe6 $15 Qxe6 34. b4) 33... Ne5 $2 {[%emt 0:00:04]} (33... Bxh3 $19 {And now ...Bg4 would win.} 34. Rd7+ Kh8) 34. Nxe5 $15 {[%emt 0:00:02]} Rxe5 {[%emt 0:00:01]} ({Don't play} 34... Qxe5 35. Rd7+ Kg8 36. Rd8+ Kh7 37. Rd7+ Kg8 38. Rd8+ Kh7 39. Rd7+ $11) 35. Qxa7+ {[%emt 0:00:01]} Re7 {[%emt 0:00:01]} 36. Qa3 {[%emt 0:00:01]} Rb7 {[%emt 0:00:04]} 37. b3 {[%emt 0:00:02]} h5 {[%emt 0:00:04]} 38. Qc5 {[%emt 0:00:02]} Qb6 {[%emt 0:00:02]} 39. Qe5 {[%emt 0:00:02]} Ra7 {[%emt 0:00:06]} 40. Rd2 {[%emt 0:00:01]} Qa5 {[%emt 0:00:00]} 41. Qe3 {[%emt 0:00:01]} Qa6 {[%emt 0:00:00]} 42. Qf4 {[%emt 0:00:01]} (42. a4 $11) 42... Re7 {[%emt 0:00:01]} 43. Kh2 {[%emt 0:00:03]} Qe6 {[%emt 0:00:01]} 44. a4 {[%emt 0:00:07]} (44. b4 $11 {remains equal.}) 44... Qe5 {[%emt 0:00:01]} ({Black should play} 44... Qxb3 $17 45. Rd4 Qb6) 45. Qxe5 $11 {[%emt 0:00:01]} Rxe5 {[%emt 0:00:01]} 46. b4 {[%emt 0:00:01]} Re4 {[%emt 0:00:06]} 47. Rb2 {[%emt 0:00:01]} Bd7 {[%emt 0:00:02]} 48. f3 {[%emt 0:00:00]} Rc4 {[%emt 0:00:01]} 49. a5 {[%emt 0:00:06]} Bb5 {[%emt 0:00:01]} 50. Kg3 {[%emt 0:00:01]} h4+ {[%emt 0:00:01]} 51. Kf2 {[%emt 0:00:00]} Rc3 {[%emt 0:00:01]} 52. Rd2 {[%emt 0:00:02]} Rb3 {[%emt 0:00:02]} 53. Rd4 {[%emt 0:00:01]} g5 {[%emt 0:00:03]} 54. Rd5 {[%emt 0:00:01]} Rxb4 {[%emt 0:00:04]} 55. Rxg5 {[%emt 0:00:01]} Kh6 {[%emt 0:00:01]} 56. Rg4 {[%emt 0:00:02]} Rxg4 {[%emt 0:00:05]} 57. fxg4 {[%emt 0:00:02]} Kg5 {[%emt 0:00:01]} 58. g3 {[%emt 0:00:01]} Ba6 {[%emt 0:00:03]} 59. gxh4+ {[%emt 0:00:08]} Kxh4 {[%emt 0:00:01]} 60. Ke3 {[%emt 0:00:00]} Bc8 $2 {[%emt 0:00:06][%mdl 8192]} (60... Bc4 $11) 61. Ke4 $2 (61. Kf4 $18 Ba6 62. Kf5) 1-0

[Event "EIBCC 2024"]
[Site "Skopje"]
[Date "2024.12.09"]
[Round "3.2"]
[White "Fedoseev, Vladimir"]
[Black "Costachi, Mihnea"]
[Result "1-0"]
[Annotator "TA"]
[ECO "C50"]
[WhiteElo "2709"]
[BlackElo "2464"]
[PlyCount "99"]
[EventDate "2024.12.07"]
[EventCountry "MKD"]
[SourceTitle "playchess.com"]
[Source "ChessBase"]
[SourceQuality "1"]
[TimeControl "180+2"]

{[%evp 10,99,25,0,0,3,16,21,23,25,18,21,27,2,33,23,47,39,46,14,37,7,12,15,104,114,108,93,108,100,212,135,170,162,170,160,158,172,150,159,289,228,177,231,239,227,400,418,416,411,420,395,574,472,1286,1256,29987,627,635,631,745,447,456,339,366,360,575,583,576,562,545,522,548,539,547,540,558,559,562,560,668,678,713,707,787,749,673,643,939,921,868,847]} 1. e4 {[%emt 0:00:07]} e5 {[%emt 0:00:01]} 2. Nf3 {[%emt 0:00:01]} Nc6 {[%emt 0:00:01]} 3. Bc4 {[%emt 0:00:01]} Bc5 {[%emt 0:00:03]} 4. O-O {[%emt 0:00:03]} d6 {[%emt 0:00:02]} 5. c3 {[%emt 0:00:02]} Nf6 {[%emt 0:00:01]} 6. d4 {[%emt 0:00:02]} Bb6 {[%emt 0:00:02]} 7. Re1 {[%emt 0:00:24]} h6 {[%emt 0:00:06]} 8. a4 {[%emt 0:00:25]} a6 {[%emt 0:00:11] The position is equal.} 9. Be3 {[%emt 0:00:09]} Ng4 {[%emt 0:00:32]} 10. Nbd2 {[%emt 0:00:01]} O-O {[%emt 0:00:05]} 11. Nf1 {[%emt 0:00:06]} Qf6 {[%emt 0:00:22]} 12. dxe5 {[%emt 0:00:12]} Ncxe5 {[%emt 0:00:15]} 13. Bxb6 {[%emt 0:00:00] Hoping for Nxe5.} Nxc4 {[%emt 0:00:26]} 14. Bd4 {[%emt 0:00:02]} (14. Bxc7 $5 Qe7 15. b3 $11) 14... Qg6 {[%emt 0:00:15][%cal Oc7c5]} 15. Qe2 {[%emt 0:00:03]} Nce5 {[%emt 0:00:06]} 16. N3d2 {[%emt 0:00:13]} c5 {[%emt 0:00:08]} (16... Nc6 $11) 17. Bxe5 $16 {[%emt 0:00:04]} Nxe5 {[%emt 0:00:02]} 18. f4 {[%emt 0:00:02][%cal Bf2f4,Bf4f5][%mdl 32]} Nc6 {[%emt 0:00:12]} 19. Nc4 $36 {[%emt 0:00:01][%mdl 2048] White has strong initiative.} Bg4 {[%emt 0:00:13]} (19... Rd8 $16 20. Nb6 Rb8) 20. Qd3 {[%emt 0:00:08][%cal Of4f5]} Rad8 {[%emt 0:00:15][%cal Od6d5]} 21. f5 $1 {[%emt 0:00:09]} Qg5 {[%emt 0:00:02]} 22. h3 {[%emt 0:00:30]} (22. Nxd6 Qf4 23. e5 Nxe5 $11) 22... d5 {[%emt 0:00:01]} 23. exd5 {[%emt 0:00:18]} Bxf5 {[%emt 0:00:01]} 24. Qf3 {[%emt 0:00:01]} Ne7 {[%emt 0:00:19] [#]} (24... Nb8 $16 25. Re5 Qh4 26. Rxf5 Qxc4) 25. Rxe7 $1 {[%emt 0:00:06][%mdl 512]} Qxe7 {[%emt 0:00:04]} 26. Qxf5 {[%emt 0:00:01]} Qe2 {[%emt 0:00:02]} 27. b3 {[%emt 0:00:25] Ng3 is the strong threat.} Rfe8 $2 {[%emt 0:00:03]} (27... b5 28. Ncd2 (28. Ng3 Qe7 $11) 28... g6) 28. a5 $18 {[%emt 0:00:06]} g6 {[%emt 0:00:01] [#]} 29. Qf4 {[%emt 0:00:06] And now Nfe3 would win.} Rxd5 {[%emt 0:00:02] [#]} 30. Nfe3 {[%emt 0:00:00] Repels Rf5} (30. Qxh6 Rd1 31. Rxd1 Qxd1 $16) 30... Rg5 {[%emt 0:00:02]} (30... Rxe3 $142 31. Nxe3 (31. Qxe3 Qxe3+ 32. Nxe3 Rd3 $18) 31... Rd3) 31. Ng4 {[%emt 0:00:02] A dynamic duo of knights.} Kg7 {[%emt 0:00:06]} (31... Rxg4 $142 32. hxg4 (32. Qxg4 Qd3 $18) 32... Qe6) 32. Qf6+ {[%emt 0:00:01]} Kf8 {[%emt 0:00:02]} 33. Qh8+ {[%emt 0:00:02]} (33. Nxh6 $2 Qxg2#) (33. Nd6 $142 Qe6 34. Qh8+ (34. Nxb7 Rd5 $18) 34... Ke7 35. Qxe8+ Kxd6 36. Qd8+ (36. Rd1+ Rd5 37. Qd8+ Kc6 38. Qb6+ Kd7 39. Rxd5+ Qxd5 40. Nf6+ Kc8 41. Nxd5 Kd7) 36... Kc6 37. Qb6+ (37. Nxh6 Rxg2+ 38. Kxg2 Qe2+ 39. Kg3 Qe3+ 40. Kg4 f5+ 41. Nxf5 gxf5+ 42. Kxf5 Qxh3+ 43. Kg6 Qg4+ 44. Qg5 Qe2 $18) 37... Kd7 38. Rd1+ (38. Qxb7+ Kd6 $18) 38... Rd5 39. Rxd5+ (39. Qxb7+ Kd6 $18) 39... Qxd5 40. Nf6+ (40. Nxh6 Qe6 $18) 40... Ke7 41. Nxd5+ Kd7 42. c4 (42. Qxb7+ Ke6 43. c4 Kf5 44. Qxf7+ Ke4 45. Qf3+ Ke5 46. Qe3+ Kd6 47. Qe7+ Kc6 48. Qc7#) 42... h5 43. Qf6 (43. Qxb7+ Ke6 44. g4 hxg4 45. hxg4 Ke5 46. Qe7+ Kd4 47. Qe3#) 43... Kc8 44. Qd6 h4 45. Ne7#) 33... Ke7 {[%emt 0:00:00]} 34. Qxh6 {[%emt 0:00:02]} Rf5 {[%emt 0:00:03]} 35. Qe3+ {[%emt 0:00:03]} Kf8 {[%emt 0:00:03]} 36. Qxe2 {[%emt 0:00:01]} Rxe2 {[%emt 0:00:05]} 37. Rd1 {[%emt 0:00:01] Against Rd5} Rc2 {[%emt 0:00:00]} (37... Rh5 {was worth a try.} 38. Rd7 Re7 39. Rd8+ Kg7) 38. Nge3 {[%emt 0:00:01][%csl LRc2,LRf5] White is clearly winning.} Rxc3 {[%emt 0:00:00]} 39. Nxf5 {[%emt 0:00:01]} gxf5 {[%emt 0:00:00][%mdl 4096] Endgame. KRN-KR} 40. Rb1 {[%emt 0:00:03]} Ke7 {[%emt 0:00:04]} 41. Kf2 {[%emt 0:00:01]} Kf6 {[%emt 0:00:01]} 42. Nd6 {[%emt 0:00:01]} Rc2+ {[%emt 0:00:03]} 43. Kf1 {[%emt 0:00:01]} Ke5 {[%emt 0:00:02]} 44. Nxb7 {[%emt 0:00:07]} Kd4 {[%emt 0:00:01]} 45. Nd6 {[%emt 0:00:04]} f4 {[%emt 0:00:01]} 46. Re1 {[%emt 0:00:03] Prevents f3.} Rb2 {[%emt 0:00:03]} 47. Rd1+ {[%emt 0:00:02]} Kc3 {[%emt 0:00:03]} 48. Ne4+ {[%emt 0:00:01]} Kxb3 {[%emt 0:00:02]} 49. Nxc5+ {[%emt 0:00:01]} Kc4 {[%emt 0:00:01]} 50. Nxa6 {[%emt 0:00:03] Weighted Error Value: White=0.50/Black=0.61.  Mistake:       	---       	Black=7      Inaccurate:     	White=3     	Black=2      OK:         	White=21    	Black=12     Best:        	White=4     	---        Strong:       	White=1     	---} 1-0

[Event "EIBCC 2024"]
[Site "Skopje"]
[Date "2024.12.09"]
[Round "3.3"]
[White "Dragnev, Valentin"]
[Black "Korobov, Anton"]
[Result "0-1"]
[Annotator "TA"]
[ECO "C03"]
[WhiteElo "2563"]
[BlackElo "2629"]
[PlyCount "80"]
[EventDate "2024.12.07"]
[EventCountry "MKD"]
[SourceTitle "playchess.com"]
[Source "ChessBase"]
[SourceQuality "1"]
[TimeControl "180+2"]

{[%evp 9,80,21,29,29,29,17,20,18,18,0,0,0,0,0,0,0,0,0,0,-6,46,-3,-11,-82,-83,-96,-91,-73,-73,-69,-69,-85,-91,-90,-85,-105,-98,-96,-49,-168,-34,-32,-35,-25,-26,-75,-73,-103,-71,-132,-100,-203,-184,-631,-381,-1287,-1258,-1709,-1838,-1869,-1829,-1784,-1727,-29979,-29980,-29988,-29989,-29990,-29991,-29991,-29991,-29992,-29992]} 1. e4 {[%emt 0:00:01]} e6 {[%emt 0:00:01]} 2. d4 {[%emt 0:00:01]} d5 {[%emt 0:00:01]} 3. Nd2 {[%emt 0:00:01]} h6 {[%emt 0:00:12]} 4. Ngf3 {[%emt 0:00:06]} Nf6 {[%emt 0:00:03]} 5. e5 {[%emt 0:00:02]} Nfd7 {[%emt 0:00:01]} 6. c3 {[%emt 0:00:01]} c5 {[%emt 0:00:01]} 7. a3 {[%emt 0:00:04]} a5 {[%emt 0:00:13]} 8. Bb5 {[%emt 0:00:12] The position is equal.} Nc6 {[%emt 0:00:02]} 9. O-O {[%emt 0:00:03]} Qb6 {[%emt 0:00:07][%csl LRb5,LRd4]} 10. Qa4 {[%emt 0:00:20]} Be7 {[%emt 0:00:04]} 11. Rd1 {[%emt 0:00:24]} O-O {[%emt 0:00:15]} 12. Nf1 {[%emt 0:00:02]} c4 {[%emt 0:00:12][%cal Oc6a7]} 13. b3 {[%emt 0:00:28]} cxb3 {[%emt 0:00:03][%cal Oc6a7] ...Na7! would now be deadly.} 14. Rb1 {[%emt 0:00:02][%cal Of1e3]} f5 {[%emt 0:00:24]} (14... Rd8 $11) 15. Qxb3 {[%emt 0:00:22]} (15. Be2 $14) 15... Na7 $11 {[%emt 0:00:16]} 16. a4 {[%emt 0:00:35]} (16. Bxd7 $11 {remains equal.} Qxb3 17. Rxb3 Bxd7 18. Rxb7) 16... Nxb5 $17 {[%emt 0:00:02]} 17. axb5 {[%emt 0:00:01]} Qc7 {[%emt 0:00:06]} 18. Ba3 {[%emt 0:00:02]} Nb6 {[%emt 0:00:03]} 19. Bxe7 {[%emt 0:00:07]} Qxe7 {[%emt 0:00:01]} 20. N1d2 {[%emt 0:00:02]} a4 {[%emt 0:00:08]} 21. Qa2 {[%emt 0:00:08]} Bd7 {[%emt 0:00:02]} 22. Ne1 {[%emt 0:00:04]} Rfc8 {[%emt 0:00:02]} 23. Rdc1 {[%emt 0:00:00]} Ra5 {[%emt 0:00:13]} (23... Be8 $17 24. Nd3 Ra5) 24. Nd3 {[%emt 0:00:09]} ({Better is} 24. Nb3 $1 $15 Rxb5 (24... axb3 25. Qxa5 Nc4 26. Qb4 $11) 25. Nc5) 24... Rxb5 {[%emt 0:00:07]} ({Black should play} 24... Bxb5 $19 25. Nf4 Nc4) 25. Nc5 $15 {[%emt 0:00:02]} Rcxc5 {[%emt 0:00:03]} 26. dxc5 {[%emt 0:00:02]} Qxc5 {[%emt 0:00:02]} 27. Rxb5 {[%emt 0:00:03]} (27. Nf3 $1 $11) 27... Bxb5 $17 {[%emt 0:00:02]} (27... Qxb5 28. Rb1 Qc5 29. Qb2 $18) 28. Rb1 {[%emt 0:00:05]} Bc6 {[%emt 0:00:12][%cal Ob6d7]} 29. Nf3 {[%emt 0:00:03]} (29. Rc1 $142) 29... Qxc3 $1 {[%emt 0:00:06][%cal Og8f7]} 30. h4 {[%emt 0:00:01]} (30. Qa1 $17 Qxa1 31. Rxa1) 30... Nc4 $19 {[%emt 0:00:02][%cal Od5d4] [#] Strongly threatening ...d4!} 31. h5 $2 {[%emt 0:00:05]} (31. Qa1 Qxa1 32. Rxa1) 31... a3 {[%emt 0:00:02][%cal Od5d4] aiming for ...d4!} 32. Qe2 $2 {[%emt 0:00:12]} (32. Qa1 Nb2 (32... Qxa1 $2 33. Rxa1 b5 34. Nd4 $17) 33. Rc1) 32... d4 {[%emt 0:00:01]} 33. Ne1 {[%emt 0:00:03]} Be4 {[%emt 0:00:07]} 34. Rd1 {[%emt 0:00:05]} Nb2 {[%emt 0:00:07]} 35. Ra1 {[%emt 0:00:00]} d3 {[%emt 0:00:04]} 36. Qe3 {[%emt 0:00:02]} Nc4 {[%emt 0:00:02] Black mates.} 37. Qc5 {[%emt 0:00:05]} Qxa1 {[%emt 0:00:04]} 38. Qc8+ {[%emt 0:00:01]} Kh7 {[%emt 0:00:01]} 39. Qxe6 {[%emt 0:00:04]} Qxe1+ {[%emt 0:00:09]} 40. Kh2 {[%emt 0:00:00] [#]} Nxe5 $1 {[%emt 0:00:02] Weighted Error Value: White=0.78/Black=0.20 (precise) .  Mistake:       	White=8     	Black=3      Inaccurate:     	White=2     	Black=2      OK:         	White=5     	Black=11     Best:        	White=1     	Black=3      Strong:       	---       	Black=1} 0-1

[Event "EIBCC 2024"]
[Site "Skopje"]
[Date "2024.12.09"]
[Round "3.4"]
[White "Papasimakopoulos, Alexandros"]
[Black "Deac, Bogdan-Daniel"]
[Result "1/2-1/2"]
[Annotator "TA"]
[ECO "E23"]
[WhiteElo "2379"]
[BlackElo "2696"]
[PlyCount "110"]
[EventDate "2024.12.07"]
[EventCountry "MKD"]
[SourceTitle "playchess.com"]
[Source "ChessBase"]
[SourceQuality "1"]
[TimeControl "180+2"]

{[%evp 13,110,12,14,18,15,12,20,12,19,-27,15,23,16,19,15,0,14,16,43,-10,3,0,0,0,0,0,0,0,0,0,0,0,0,0,18,-4,18,-4,0,0,-7,-10,0,-9,-10,-13,-12,-12,-19,-14,-14,-16,-18,-20,-8,-14,-8,-10,-8,-18,-6,-10,0,-16,0,-12,0,0,0,0,0,0,0,0,0,0,0,0,0,0,0,0,0,0,0,0,0,0,0,0,0,0,0,0,0,0,0,0,0]} 1. d4 {[%emt 0:00:01]} Nf6 {[%emt 0:00:10]} 2. c4 {[%emt 0:00:00]} e6 {[%emt 0:00:01]} 3. Nc3 {[%emt 0:00:01]} Bb4 {[%emt 0:00:02]} 4. Qb3 {[%emt 0:00:00]} c5 {[%emt 0:00:08]} 5. dxc5 {[%emt 0:00:01]} Bxc5 {[%emt 0:00:05]} 6. Nf3 {[%emt 0:00:01]} Nc6 {[%emt 0:00:06]} 7. Bg5 {[%emt 0:00:02]} Be7 {[%emt 0:00:09] E23: Nimzo-Indian: 4 Qb3 c5 5 dxc5 Nc6.} 8. e3 {[%emt 0:00:01]} h6 {[%emt 0:00:05]} 9. Bh4 {[%emt 0:00:01]} b6 {[%emt 0:00:01]} 10. Be2 {[%emt 0:00:01]} Bb7 {[%emt 0:00:01]} 11. O-O {[%emt 0:00:02]} (11. Rd1 $142) 11... O-O {[%emt 0:00:06]} (11... g5 $5 12. Bg3 $8 Nh5 $11) 12. Rfd1 {[%emt 0:00:01]} Rc8 {[%emt 0:00:05]} 13. Qa4 {[%emt 0:00:08]} a6 {[%emt 0:01:21]} 14. Rd2 {[%emt 0:00:02]} Qc7 {[%emt 0:00:05]} 15. Rad1 $146 {[%emt 0:00:03]} ({Predecessor:} 15. Qd1 Rfd8 16. Nd5 exd5 17. cxd5 Nxd5 18. Rxd5 Bxh4 19. Nxh4 d6 20. Rc1 Qe7 21. Nf5 {1-0 Suttor,V (2128)-De Noskowski,A Australian op 2006 (1)}) 15... Rfd8 {[%emt 0:00:02]} 16. Rc1 {[%emt 0:00:10]} (16. Bxf6 $14 Bxf6 17. Ne4) 16... Qb8 {[%emt 0:00:09]} (16... Na5 {with more complications.} 17. Rd4 d5 18. cxd5 e5) 17. Qd1 {[%emt 0:00:01]} d6 {[%emt 0:00:04]} 18. Bg3 {[%emt 0:00:01]} Nh5 {[%emt 0:00:06]} 19. Bh4 {[%emt 0:00:14]} Bxh4 {[%emt 0:00:08]} 20. Nxh4 {[%emt 0:00:01]} Nf6 {[%emt 0:00:01]} 21. Nf3 {[%emt 0:00:01]} Ne7 {[%emt 0:00:20]} 22. Nd4 {[%emt 0:00:18]} Qa8 {[%emt 0:00:04]} 23. Qf1 {[%emt 0:00:12]} Rc7 {[%emt 0:00:23]} 24. Rcd1 {[%emt 0:00:30]} Rdc8 {[%emt 0:00:03]} 25. h3 {[%emt 0:00:29]} d5 {[%emt 0:00:00]} 26. cxd5 {[%emt 0:00:01]} Nexd5 {[%emt 0:00:01]} 27. Nxd5 {[%emt 0:00:01]} Nxd5 {[%emt 0:00:04]} 28. Bf3 {[%emt 0:00:02]} Nf6 {[%emt 0:00:03]} 29. Bxb7 {[%emt 0:00:10]} Qxb7 {[%emt 0:00:01]} 30. Nf3 {[%emt 0:00:09]} g6 {[%emt 0:00:01]} 31. Rd8+ {[%emt 0:00:06]} Kg7 {[%emt 0:00:01]} 32. Rxc8 {[%emt 0:00:02]} Qxc8 {[%emt 0:00:01]} 33. Qd3 {[%emt 0:00:04]} b5 {[%emt 0:00:04]} 34. a3 {[%emt 0:00:23]} Rc2 {[%emt 0:00:02]} 35. Qd4 {[%emt 0:00:01]} Rc4 {[%emt 0:00:03]} 36. Qd6 {[%emt 0:00:06]} Rc6 {[%emt 0:00:03]} 37. Qd4 {[%emt 0:00:00]} Rc4 {[%emt 0:00:01]} 38. Qd6 {[%emt 0:00:01]} Rc6 {[%emt 0:00:04]} 39. Qd4 {[%emt 0:00:12]} Qc7 {[%emt 0:00:02]} 40. Ne5 {[%emt 0:00:11]} Rc1 {[%emt 0:00:01]} 41. Rxc1 {[%emt 0:00:05]} Qxc1+ {[%emt 0:00:01]} 42. Kh2 {[%emt 0:00:00]} Qc7 $1 {[%emt 0:00:01]} 43. f4 {[%emt 0:00:01]} Kh7 {[%emt 0:00:02]} 44. b3 {[%emt 0:00:11]} Nd5 {[%emt 0:00:02]} 45. Ng4 {[%emt 0:00:04]} h5 {[%emt 0:00:01]} 46. Nf6+ {[%emt 0:00:01]} Nxf6 {[%emt 0:00:01]} 47. Qxf6 {[%emt 0:00:02]} Kg8 {[%emt 0:00:02]} 48. Qd4 {[%emt 0:00:01]} Qe7 {[%emt 0:00:02]} 49. a4 {[%emt 0:00:02]} bxa4 {[%emt 0:00:02]} 50. bxa4 {[%emt 0:00:01]} Qc7 {[%emt 0:00:02]} 51. Kg3 {[%emt 0:00:06]} a5 {[%emt 0:00:01]} 52. Kh2 {[%emt 0:00:02]} Kh7 {[%emt 0:00:04]} 53. Kg3 {[%emt 0:00:01]} Kg8 {[%emt 0:00:03]} 54. Kf2 {[%emt 0:00:01]} Qb8 {[%emt 0:00:02]} 55. Kg3 {[%emt 0:00:02]} Qc7 {[%emt 0:00:02]} 1/2-1/2

[Event "EIBCC 2024"]
[Site "Skopje"]
[Date "2024.12.09"]
[Round "3.5"]
[White "Mamedov, Rauf"]
[Black "Boyer, Mahel"]
[Result "1-0"]
[Annotator "TA"]
[ECO "B00"]
[WhiteElo "2656"]
[BlackElo "2526"]
[PlyCount "57"]
[EventDate "2024.12.07"]
[EventCountry "MKD"]
[SourceTitle "playchess.com"]
[Source "ChessBase"]
[SourceQuality "1"]
[TimeControl "180+2"]

{[%evp 9,56,153,148,145,144,152,145,68,78,55,94,33,98,103,103,62,56,66,58,21,25,16,109,70,148,143,277,272,266,268,839,833,1113,1085,1916,1322,1204,737,737,735,714,730,673,469,29993,29991,29991,29992,29999]} 1. e4 {[%emt 0:00:00]} Nc6 {[%emt 0:00:00]} 2. Nf3 {[%emt 0:00:01]} d5 {[%emt 0:00:01]} 3. exd5 {[%emt 0:00:00]} Qxd5 {[%emt 0:00:01]} 4. Nc3 {[%emt 0:00:01]} Qh5 {[%emt 0:00:02]} 5. Nb5 {[%emt 0:00:00]} Kd8 {[%emt 0:00:00]} 6. d4 {[%emt 0:00:10] And now d5 would win.} Bg4 {[%emt 0:00:02]} 7. Bf4 {[%emt 0:00:11]} a6 {[%emt 0:00:01] [#]} 8. Nc3 {[%emt 0:00:05]} (8. Nxc7 $6 Rc8 $11) (8. Bxc7+ Kc8 9. d5 axb5 $11) ({White should play} 8. d5 $1 $16 {[%cal Rd5c6]} Bxf3 9. gxf3) 8... Bxf3 $14 {[%emt 0:00:12]} 9. gxf3 {[%emt 0:00:01]} Nf6 {[%emt 0:00:02]} 10. d5 {[%emt 0:00:10]} (10. Rg1 $16) 10... Ne5 {[%emt 0:00:03]} (10... Nb4 $14 11. a3 Qf5 12. Bxc7+ Kxc7 13. axb4 e6) 11. Be2 $16 {[%emt 0:00:01]} g6 {[%emt 0:00:13]} 12. Bg3 {[%emt 0:00:06] [#] Hoping for f4.} Qf5 {[%emt 0:00:26]} 13. f4 $36 {[%emt 0:01:07][%mdl 2048] White has the initiative.} Ned7 {[%emt 0:02:25]} 14. Qd4 {[%emt 0:00:01]} Bg7 {[%emt 0:00:00]} 15. O-O-O {[%emt 0:00:02]} Kc8 {[%emt 0:00:00]} (15... Ne8 $1 $11 {keeps the balance.} 16. Qb4 Nd6) 16. Rhe1 {[%emt 0:00:02] Threatens to win with Bd3. White is more active.} Nh5 {[%emt 0:00:00]} (16... Ne8 $14 17. Qe3 Nd6) 17. Qb4 {[%emt 0:00:04] Black must now prevent Bxh5.} a5 {[%emt 0:00:00]} (17... Nxg3 $16 18. fxg3 (18. hxg3 Bxc3 19. bxc3 Qf6 $16) 18... Bxc3 19. bxc3 (19. Qxc3 Qf6 $16) 19... Qf6) 18. Qxe7 $18 {[%emt 0:00:16][%cal Oe2g4] Strongly threatening Bg4!} Bf6 {[%emt 0:00:00]} 19. Qe3 {[%emt 0:00:01]} ({Don't take} 19. Qxf7 Nxf4 20. Kb1 Ne5 $18) 19... Nb6 $2 {[%emt 0:00:04]} (19... Bd8 20. Bxh5 gxh5) 20. d6 {[%emt 0:00:05][%cal Bd5d6,Bd6c7][%mdl 32]} Nd7 {[%emt 0:00:07]} 21. dxc7 {[%emt 0:00:05]} a4 {[%emt 0:00:02]} 22. Nb5 {[%emt 0:00:12]} Ra6 {[%emt 0:00:01]} 23. Bg4 {[%emt 0:00:20] White threatens Qe8+ and mate.} Qxb5 {[%emt 0:00:01]} 24. Bxd7+ {[%emt 0:00:01]} Qxd7 {[%emt 0:00:03]} 25. Rxd7 {[%emt 0:00:01]} Kxd7 {[%emt 0:00:02]} 26. f5 {[%emt 0:00:01]} Rc6 {[%emt 0:00:03]} (26... Nxg3 $18 27. hxg3 (27. fxg3 Rc6 $18) 27... Rc6 28. Rd1+ Kxc7 29. Qf4+ Kc8) 27. Qd3+ {[%emt 0:00:06] White mates.} Kc8 {[%emt 0:00:01]} 28. Rd1 {[%emt 0:00:01][%csl Gd1][%cal Rd3d7]} Nxg3 {[%emt 0:00:02]} 29. Qd7# {[%emt 0:00:49] Weighted Error Value: White=0.40/Black=0.58.  Mistake:       	White=2     	Black=5      Inaccurate:     	White=3     	Black=1      OK:         	White=3     	Black=8      Best:        	White=4     	Black=1} 1-0